Workbook

Sheet 保有者数
A1: 市町村別 警察署別 年齢別 男女別 免許保有者数（2023年10月31日現在）
B2: 市町村名 | C2: 男(人) | D2: 女(人) | E2: 合計(人) | F2: 比率（％） | H2: 市町村名 | I2: 男(人) | J2: 女(人) | K2: 合計(人) | L2: 比率（％）
A3: 中央署 | B3: 鹿児島市（中央） | C3: 53857 | D3: 53882 | E3: =SUM(C3:D3) -> 107739 | F3: =E3/K55 -> 0.09963609461 | G3: 霧島署 | H3: 霧島市 | I3: 41407 | J3: 39723 | K3: =SUM(I3:J3) -> 81130 | L3: =K3/K55 -> 0.07502832173
B4: 鹿児島郡十島村 | C4: 219 | D4: 150 | E4: =SUM(C4:D4) -> 369 | F4: =E4/K55 -> 0.0003412480059 | K4: 0
B5: 鹿児島郡三島村 | C5: 124 | D5: 96 | E5: 220 | F5: =E5/K55 -> 0.0002034540957 | K5: 0
B6: 【中央署合計】 | C6: =SUM(C3:C5) -> 54200 | D6: =SUM(D3:D5) -> 54128 | E6: 108328 | F6: =E6/K55 -> 0.1001807967 | G6: 横川幹部派出所 | H6: 霧島市横川町 | I6: 1287 | J6: 1177 | K6: 2464 | L6: =K6/K55 -> 0.002278685872
A7: 西署 | B7: 鹿児島市(西) | C7: 68001 | D7: 67254 | E7: 135255 | F7: =E7/K55 -> 0.1250826532 | H7: 霧島市牧園町 | I7: 2176 | J7: 1977 | K7: 4153 | L7: =K7/K55 -> 0.003840658451
E8: 0 | H8: 〈小計〉 | I8: =SUM(I6:I7) -> 3463 | J8: =SUM(J6:J7) -> 3154 | K8: 6617 | L8: =K8/K55 -> 0.006119344323
A9: 南署 | B9: 鹿児島市(南) | C9: 78698 | D9: 76652 | E9: 155350 | F9: =E9/K55 -> 0.1436663353 | H9: 【霧島署合計】 | I9: =SUM(I8,I3) -> 44870 | J9: =SUM(J8,J3) -> 42877 | K9: 87747 | L9: =K9/K55 -> 0.08114766606
E10: 0 | G10: 姶良署 | H10: 姶良市 | I10: 26841 | J10: 26586 | K10: =SUM(I10:J10) -> 53427 | L10: =K10/K55 -> 0.04940882713
A11: 指宿署 | B11: 指宿市 | C11: 13266 | D11: 12942 | E11: 26208 | F11: =E11/K55 -> 0.02423693154 | K11: 0
E12: 0 | K12: 0
E13: 0 | G13: 曽於署 | H13: 曽於市 | I13: 12080 | J13: 11509 | K13: 23589 | L13: =K13/K55 -> 0.02181490301
A14: 南九州署 | B14: 南九州市 | C14: 11567 | D14: 11298 | E14: 22865 | F14: =E14/K55 -> 0.02114535408 | K14: 0
E15: 0 | K15: 0
E16: 0 | G16: 志布志署 | H16: 志布志市 | I16: 10641 | J16: 10192 | K16: =SUM(I16:J16) -> 20833 | L16: =K16/K55 -> 0.01926617807
A17: 枕崎署 | B17: 枕崎市 | C17: 6844 | D17: 6843 | E17: 13687 | F17: =E17/K55 -> 0.01265761912 | H17: 曽於郡大崎町 | I17: 4450 | J17: 4211 | K17: =SUM(I17:J17) -> 8661 | L17: =K17/K55 -> 0.00800961783
E18: 0 | H18: 【志布志署合計】 | I18: =SUM(I16:I17) -> 15091 | J18: =SUM(J16:J17) -> 14403 | K18: 29494 | L18: =K18/K55 -> 0.0272757959
E19: 0 | G19: 肝付署 | H19: 肝属郡肝付町 | I19: 5142 | J19: 4580 | K19: =SUM(I19:J19) -> 9722 | L19: =K19/K55 -> 0.008990821446
A20: 南さつま署 | B20: 南さつま市 | C20: 11133 | D20: 10685 | E20: 21818 | F20: =E20/K55 -> 0.02017709754 | H20: 肝属郡東串良町 | I20: 2230 | J20: 2141 | K20: 4371 | L20: =K20/K55 -> 0.004042262964
E21: 0 | H21: 【肝付署合計】 | I21: =SUM(I19:I20) -> 7372 | J21: =SUM(J19:J20) -> 6721 | K21: 14093 | L21: =K21/K55 -> 0.01303308441
E22: 0 | G22: 鹿屋署 | H22: 鹿屋市 | I22: 35406 | J22: 34639 | K22: =SUM(I22:J22) -> 70045 | L22: =K22/K55 -> 0.06477700969
A23: 日置署 | B23: 日置市 | C23: 16404 | D23: 15796 | E23: 32200 | F23: =E23/K55 -> 0.02977828128 | K23: 0
E24: 0 | G24: 垂水幹部派出所 | H24: 垂水市 | I24: 4766 | J24: 4135 | K24: 8901 | L24: =K24/K55 -> 0.008231567753
E25: 0 | K25: 0
A26: いちき串木野署 | B26: いちき串木野市 | C26: 9354 | D26: 8793 | E26: 18147 | F26: =E26/K55 -> 0.01678218852 | H26: 【鹿屋署合計】 | I26: =SUM(I22:I25) -> 40172 | J26: =SUM(J22:J25) -> 38774 | K26: 78946 | L26: =K26/K55 -> 0.07300857744
E27: 0 | K27: 0
E28: 0 | G28: 錦江署 | H28: 肝属郡錦江町 | I28: 2398 | J28: 2091 | K28: =SUM(I28:J28) -> 4489 | L28: =K28/K55 -> 0.004151388343
E29: 0 | H29: 肝属郡南大隅町 | I29: 2243 | J29: 1864 | K29: 4107 | L29: =K29/K55 -> 0.00379811805
A30: 薩摩川内署 | B30: 薩摩川内市 | C30: 32001 | D30: 29541 | E30: 61542 | F30: =E30/K55 -> 0.05691350889 | H30: 【錦江署合計】 | I30: =SUM(I28:I29) -> 4641 | J30: =SUM(J28:J29) -> 3955 | K30: 8596 | L30: =K30/K55 -> 0.007949506393
E31: 0 | G31: 種子島署 | H31: 西之表市 | I31: 5219 | J31: 4647 | K31: 9866 | L31: =K31/K55 -> 0.009123991399
E32: 0 | H32: 熊毛郡中種子町 | I32: 2684 | J32: 2471 | K32: 5155 | L32: =K32/K55 -> 0.004767299378
E33: 0 | H33: 熊毛郡南種子町 | I33: 2076 | J33: 1759 | K33: 3835 | L33: =K33/K55 -> 0.003546574804
A34: 甑島幹部派出所 | B34: 薩摩川内市里町 | C34: 361 | D34: 267 | E34: 628 | F34: =E34/K55 -> 0.000580768964 | H34: 【種子島署合計】 | I34: =SUM(I31:I33) -> 9979 | J34: =SUM(J31:J33) -> 8877 | K34: 18856 | L34: =K34/K55 -> 0.01743786558
B35: 薩摩川内市上甑町 | C35: 374 | D35: 215 | E35: 589 | F35: =E35/K55 -> 0.0005447021016 | G35: 屋久島署 | H35: 熊毛郡屋久島町 | I35: 4316 | J35: 3569 | K35: =SUM(I35:J35) -> 7885 | L35: =K35/K55 -> 0.007291979747
B36: 薩摩川内市下甑町 | C36: 606 | D36: 360 | E36: 966 | F36: =E36/K55 -> 0.0008933484383 | K36: 0
B37: 薩摩川内市鹿島町 | C37: 112 | D37: 64 | E37: 176 | F37: =E37/K55 -> 0.0001627632765 | G37: 奄美署 | H37: 奄美市 | I37: 14195 | J37: 12563 | K37: =SUM(I37:J37) -> 26758 | L37: =K37/K55 -> 0.02474556678
B38: 〈小計〉 | C38: =SUM(C34:C37) -> 1453 | D38: =SUM(D34:D37) -> 906 | E38: 2359 | F38: =E38/K55 -> 0.00218158278 | H38: 大島郡大和村 | I38: 512 | J38: 374 | K38: 886 | L38: =K38/K55 -> 0.0008193651307
B39: 【薩摩川内署合計】 | C39: =SUM(C38,C30) -> 33454 | D39: =SUM(D38,D30) -> 30447 | E39: 63901 | F39: =E39/K55 -> 0.05909509167 | H39: 大島郡龍郷町 | I39: 2017 | J39: 1884 | K39: 3901 | L39: =K39/K55 -> 0.003607611033
A40: さつま署 | B40: さつま町 | C40: 7044 | D40: 6633 | E40: 13677 | F40: =E40/K55 -> 0.01264837121 | H40: 〈小計〉 | I40: =SUM(I37:I39) -> 16724 | J40: =SUM(J37:J39) -> 14821 | K40: 31545 | L40: =K40/K55 -> 0.02917254294
E41: 0 | G41: 喜界 | H41: 大島郡喜界町 | I41: 2443 | J41: 1995 | K41: 4438 | L41: =K41/K55 -> 0.004104223984
E42: 0 | H42: 【奄美署合計】 | I42: =SUM(I40,I41) -> 19167 | J42: =SUM(J40,J41) -> 16816 | K42: 35983 | L42: =K42/K55 -> 0.03327676693
A43: 阿久根署 | B43: 阿久根市 | C43: 6743 | D43: 6169 | E43: 12912 | F43: =E43/K55 -> 0.01194090583 | G43: 瀬戸内署 | H43: 大島郡瀬戸内町 | I43: 2918 | J43: 2236 | K43: 5154 | L43: =K43/K55 -> 0.004766374587
B44: 出水郡長島町 | C44: 3570 | D44: 3102 | E44: 6672 | F44: =E44/K55 -> 0.006170207847 | H44: 大島郡宇検村 | I44: 573 | J44: 454 | K44: 1027 | L44: =K44/K55 -> 0.0009497607102
B45: 【阿久根署合計】 | C45: =SUM(C43:C44) -> 10313 | D45: =SUM(D43:D44) -> 9271 | E45: 19584 | F45: =E45/K55 -> 0.01811111368 | H45: 【瀬戸内署合計】 | I45: =SUM(I43:I44) -> 3491 | J45: =SUM(J43:J44) -> 2690 | K45: 6181 | L45: =K45/K55 -> 0.005716135297
A46: 出水署 | B46: 出水市 | C46: 18358 | D46: 17996 | E46: 36354 | F46: =E46/K55 -> 0.03361986452 | G46: 徳之島署 | H46: 大島郡徳之島町 | I46: 3611 | J46: 3217 | K46: 6828 | L46: =K46/K55 -> 0.006314475297
E47: 0 | H47: 大島郡天城町 | I47: 2058 | J47: 1722 | K47: 3780 | L47: =K47/K55 -> 0.00349571128
A48: 伊佐湧水署 | B48: 伊佐市 | C48: 8430 | D48: 8137 | E48: 16567 | F48: =E48/K55 -> 0.0153210182 | H48: 大島郡伊仙町 | I48: 2254 | J48: 1825 | K48: 4079 | L48: =K48/K55 -> 0.003772223892
E49: 0 | H49: 【徳之島署合計】 | I49: =SUM(I46:I48) -> 7923 | J49: =SUM(J46:J48) -> 6764 | K49: 14687 | L49: =K49/K55 -> 0.01358241047
B50: 姶良郡湧水町 | C50: 3178 | D50: 2977 | E50: 6155 | F50: =E50/K55 -> 0.005692090722 | G50: 沖永良部署 | H50: 大島郡和泊町 | I50: 2331 | J50: 2024 | K50: 4355 | L50: =K50/K55 -> 0.004027466303
B51: 【伊佐湧水署合計】 | C51: =SUM(C48:C50) -> 11608 | D51: =SUM(D48:D50) -> 11114 | E51: 22722 | F51: =E51/K55 -> 0.02101310892 | H51: 大島郡知名町 | I51: 2116 | J51: 1718 | K51: 3834 | L51: =K51/K55 -> 0.003545650013
H52: 〈小計〉 | I52: =SUM(I50:I51) -> 4447 | J52: =SUM(J50:J51) -> 3742 | K52: 8189 | L52: =K52/K55 -> 0.007573116316
G53: 与論 | H53: 大島郡与論町 | I53: 1832 | J53: 1724 | K53: 3556 | L53: =K53/K55 -> 0.003288558019
H54: 【沖永良部署合計】 | I54: =SUM(I52,I53) -> 6279 | J54: =SUM(J52,J53) -> 5466 | K54: 11745 | L54: =K54/K55 -> 0.01086167433
H55: 合計 | I55: =SUM(C6,C7,C9,C11,C14,C17,C20,C23,C26,C39,C40,C45,C46,C51,I9,I10,I13,I18,I21,I26,I30,I34,I35,I42,I45,I49,I54) -> 552466 | J55: =SUM(D6,D7,D9,D11,D14,D17,D20,D23,D26,D39,D40,D45,D46,D51,J9,J10,J13,J18,J21,J26,J30,J34,J35,J42,J45,J49,J54) -> 528859 | K55: 1081325 | L55: =K55/K55 -> 1
A58: ※ 比率は県内全免許保有者に対する各市町村の免許保有者等の割合である。 比率は小数点以下２桁で切り捨てているため，若干の誤差がある。

Sheet 65歳以上
A1: 市町村別 警察署別 年齢別 男女別 免許保有者数「65歳以上」（2023年10月31日現在）
B2: 市町村名 | C2: 男(人) | D2: 女(人) | E2: 合計(人) | F2: 免許人口(人) | G2: 高齢化比率（％） | I2: 市町村名 | J2: 男(人) | K2: 女(人) | L2: 合計(人) | M2: 免許人口(人) | N2: 高齢化比率（％）
A3: 中央署 | B3: 鹿児島市（中央） | C3: 14008 | D3: 9909 | E3: =SUM(C3:D3) -> 23917 | F3: =保有者数!E3 -> 107739 | G3: =E3/F3 -> 0.22199018 | H3: 霧島署 | I3: 霧島市 | J3: 11402 | K3: 9678 | L3: =SUM(J3:K3) -> 21080 | M3: =保有者数!K3 -> 81130 | N3: =L3/M3 -> 0.2598299026
B4: 鹿児島郡十島村 | C4: 73 | D4: 32 | E4: =SUM(C4:D4) -> 105 | F4: =保有者数!E4 -> 369 | G4: =E4/F4 -> 0.2845528455
B5: 鹿児島郡三島村 | C5: 35 | D5: 18 | E5: 53 | F5: =保有者数!E5 -> 220 | G5: 0.2409090909
B6: 【中央署合計】 | C6: =SUM(C3:C5) -> 14116 | D6: =SUM(D3:D5) -> 9959 | E6: 24075 | F6: =保有者数!E6 -> 108328 | G6: 0.2222417104 | H6: 横川幹部派出所 | I6: 霧島市横川町 | J6: 604 | K6: 516 | L6: =SUM(J6:K6) -> 1120 | M6: =保有者数!K6 -> 2464 | N6: =L6/M6 -> 0.4545454545
A7: 西署 | B7: 鹿児島市(西) | C7: 22250 | D7: 16823 | E7: 39073 | F7: =保有者数!E7 -> 135255 | G7: =E7/F7 -> 0.2888839599 | I7: 霧島市牧園町 | J7: 1104 | K7: 959 | L7: =SUM(J7:K7) -> 2063 | M7: =保有者数!K7 -> 4153 | N7: =L7/M7 -> 0.4967493378
E8: 0 | I8: 〈小計〉 | J8: =SUM(J6:J7) -> 1708 | K8: =SUM(K6:K7) -> 1475 | L8: 3183 | M8: =保有者数!K8 -> 6617 | N8: 0.4810337011
A9: 南署 | B9: 鹿児島市(南) | C9: 21405 | D9: 16266 | E9: 37671 | F9: =保有者数!E9 -> 155350 | G9: =E9/F9 -> 0.242491149 | I9: 【霧島署合計】 | J9: =SUM(J8,J3) -> 13110 | K9: =SUM(K8,K3) -> 11153 | L9: 24263 | M9: =保有者数!K9 -> 87747 | N9: 0.2765108779
E10: 0 | H10: 姶良署 | I10: 姶良市 | J10: 8849 | K10: 7342 | L10: 16191 | M10: =保有者数!K10 -> 53427 | N10: =L10/M10 -> 0.3030490202
A11: 指宿署 | B11: 指宿市 | C11: 5529 | D11: 4835 | E11: 10364 | F11: =保有者数!E11 -> 26208 | G11: =E11/F11 -> 0.3954517705 | L11: 0
E12: 0 | L12: 0
E13: 0 | H13: 曽於署 | I13: 曽於市 | J13: 5246 | K13: 4777 | L13: 10023 | M13: =保有者数!K13 -> 23589 | N13: =L13/M13 -> 0.4249014371
A14: 南九州署 | B14: 南九州市 | C14: 4826 | D14: 4472 | E14: 9298 | F14: =保有者数!E14 -> 22865 | G14: =E14/F14 -> 0.4066477148 | L14: 0
E15: 0 | L15: 0
E16: 0 | H16: 志布志署 | I16: 志布志市 | J16: 4055 | K16: 3653 | L16: 7708 | M16: =保有者数!K16 -> 20833 | N16: =L16/M16 -> 0.3699899198
A17: 枕崎署 | B17: 枕崎市 | C17: 2837 | D17: 2775 | E17: 5612 | F17: =保有者数!E17 -> 13687 | G17: =E17/F17 -> 0.4100241105 | I17: 曽於郡大崎町 | J17: 1863 | K17: 1774 | L17: 3637 | M17: =保有者数!K17 -> 8661 | N17: =L17/M17 -> 0.4199284147
E18: 0 | I18: 【志布志署合計】 | J18: =SUM(J16:J17) -> 5918 | K18: =SUM(K16:K17) -> 5427 | L18: 11345 | M18: =保有者数!K18 -> 29494 | N18: 0.384654506
E19: 0 | H19: 肝付署 | I19: 肝属郡肝付町 | J19: 2177 | K19: 1803 | L19: 3980 | M19: =保有者数!K19 -> 9722 | N19: 0.4093807858
A20: 南さつま署 | B20: 南さつま市 | C20: 4602 | D20: 3891 | E20: 8493 | F20: =保有者数!E20 -> 21818 | G20: =E20/F20 -> 0.3892657439 | I20: 肝属郡東串良町 | J20: 831 | K20: 778 | L20: 1609 | M20: =保有者数!K20 -> 4371 | N20: 0.3681079844
E21: 0 | I21: 【肝付署合計】 | J21: =SUM(J19:J20) -> 3008 | K21: =SUM(K19:K20) -> 2581 | L21: 5589 | M21: =保有者数!K21 -> 14093 | N21: 0.3965798623
E22: 0 | H22: 鹿屋署 | I22: 鹿屋市 | J22: 11261 | K22: 10001 | L22: 21262 | M22: =保有者数!K22 -> 70045 | N22: =L22/M22 -> 0.3035477193
A23: 日置署 | B23: 日置市 | C23: 6216 | D23: 5090 | E23: 11306 | F23: =保有者数!E23 -> 32200 | G23: =E23/F23 -> 0.3511180124 | L23: 0
E24: 0 | H24: 垂水幹部派出所 | I24: 垂水市 | J24: 2116 | K24: 1591 | L24: 3707 | M24: =保有者数!K24 -> 8901 | N24: =L24/M24 -> 0.4164700595
E25: 0 | L25: 0
A26: いちき串木野署 | B26: いちき串木野市 | C26: 3646 | D26: 3041 | E26: 6687 | F26: =保有者数!E26 -> 18147 | G26: =E26/F26 -> 0.3684906596 | I26: 【鹿屋署合計】 | J26: =SUM(J22:J25) -> 13377 | K26: =SUM(K22:K25) -> 11592 | L26: 24969 | M26: =保有者数!K26 -> 78946 | N26: =L26/M26 -> 0.3162794822
E27: 0 | L27: 0
E28: 0 | H28: 錦江署 | I28: 肝属郡錦江町 | J28: 1108 | K28: 889 | L28: 1997 | M28: =保有者数!K28 -> 4489 | N28: =L28/M28 -> 0.4448652261
E29: 0 | I29: 肝属郡南大隅町 | J29: 1103 | K29: 819 | L29: 1922 | M29: =保有者数!K29 -> 4107 | N29: =L29/M29 -> 0.467981495
A30: 薩摩川内署 | B30: 薩摩川内市 | C30: 10172 | D30: 8732 | E30: 18904 | F30: =保有者数!E30 -> 61542 | G30: =E30/F30 -> 0.3071723376 | I30: 【錦江署合計】 | J30: =SUM(J28:J29) -> 2211 | K30: =SUM(K28:K29) -> 1708 | L30: 3919 | M30: =保有者数!K30 -> 8596 | N30: 0.4559097255
E31: 0 | H31: 種子島署 | I31: 西之表市 | J31: 1979 | K31: 1654 | L31: 3633 | M31: =保有者数!K31 -> 9866 | N31: 0.3682343402
E32: 0 | I32: 熊毛郡中種子町 | J32: 1033 | K32: 989 | L32: 2022 | M32: =保有者数!K32 -> 5155 | N32: 0.3922405432
E33: 0 | I33: 熊毛郡南種子町 | J33: 772 | K33: 650 | L33: 1422 | M33: =保有者数!K33 -> 3835 | N33: 0.3707953064
A34: 甑島幹部派出所 | B34: 薩摩川内市里町 | C34: 185 | D34: 125 | E34: 310 | F34: =保有者数!E34 -> 628 | G34: =E34/F34 -> 0.4936305732 | I34: 【種子島署合計】 | J34: =SUM(J31:J33) -> 3784 | K34: =SUM(K31:K33) -> 3293 | L34: 7077 | M34: =保有者数!K34 -> 18856 | N34: 0.3753182011
B35: 薩摩川内市上甑町 | C35: 199 | D35: 97 | E35: 296 | F35: =保有者数!E35 -> 589 | G35: =E35/F35 -> 0.5025466893 | H35: 屋久島署 | I35: 熊毛郡屋久島町 | J35: 1693 | K35: 1095 | L35: 2788 | M35: =保有者数!K35 -> 7885 | N35: =L35/M35 -> 0.3535827521
B36: 薩摩川内市下甑町 | C36: 260 | D36: 138 | E36: 398 | F36: =保有者数!E36 -> 966 | G36: 0.4120082816 | L36: 0
B37: 薩摩川内市鹿島町 | C37: 56 | D37: 32 | E37: 88 | F37: =保有者数!E37 -> 176 | G37: 0.5 | H37: 奄美署 | I37: 奄美市 | J37: 4633 | K37: 3475 | L37: 8108 | M37: =保有者数!K37 -> 26758 | N37: =L37/M37 -> 0.3030121833
B38: 〈小計〉 | C38: =SUM(C34:C37) -> 700 | D38: =SUM(D34:D37) -> 392 | E38: 1092 | F38: =保有者数!E38 -> 2359 | G38: 0.4629080119 | I38: 大島郡大和村 | J38: 189 | K38: 114 | L38: 303 | M38: =保有者数!K38 -> 886 | N38: =L38/M38 -> 0.341986456
B39: 【薩摩川内署合計】 | C39: =SUM(C38,C30) -> 10872 | D39: =SUM(D38,D30) -> 9124 | E39: 19996 | F39: =保有者数!E39 -> 63901 | G39: 0.3129215505 | I39: 大島郡龍郷町 | J39: 699 | K39: 524 | L39: 1223 | M39: =保有者数!K39 -> 3901 | N39: 0.3135093566
A40: さつま署 | B40: さつま町 | C40: 2921 | D40: 2716 | E40: 5637 | F40: =保有者数!E40 -> 13677 | G40: =E40/F40 -> 0.4121517877 | I40: 〈小計〉 | J40: =SUM(J37:J39) -> 5521 | K40: =SUM(K37:K39) -> 4113 | L40: 9634 | M40: =保有者数!K40 -> 31545 | N40: 0.305404977
E41: 0 | H41: 喜界 | I41: 大島郡喜界町 | J41: 1019 | K41: 776 | L41: 1795 | M41: =保有者数!K41 -> 4438 | N41: 0.4044614691
E42: 0 | I42: 【奄美署合計】 | J42: =SUM(J40,J41) -> 6540 | K42: =SUM(K40,K41) -> 4889 | L42: 11429 | M42: =保有者数!K42 -> 35983 | N42: 0.3176222105
A43: 阿久根署 | B43: 阿久根市 | C43: 2812 | D43: 2315 | E43: 5127 | F43: =保有者数!E43 -> 12912 | G43: =E43/F43 -> 0.3970724907 | H43: 瀬戸内署 | I43: 大島郡瀬戸内町 | J43: 1044 | K43: 651 | L43: 1695 | M43: =保有者数!K43 -> 5154 | N43: 0.32887078
B44: 出水郡長島町 | C44: 1389 | D44: 1095 | E44: 2484 | F44: =保有者数!E44 -> 6672 | G44: =E44/F44 -> 0.3723021583 | I44: 大島郡宇検村 | J44: 258 | K44: 166 | L44: 424 | M44: =保有者数!K44 -> 1027 | N44: 0.4128529698
B45: 【阿久根署合計】 | C45: =SUM(C43:C44) -> 4201 | D45: =SUM(D43:D44) -> 3410 | E45: 7611 | F45: =保有者数!E45 -> 19584 | G45: 0.3886335784 | I45: 【瀬戸内署合計】 | J45: =SUM(J43:J44) -> 1302 | K45: =SUM(K43:K44) -> 817 | L45: 2119 | M45: =保有者数!K45 -> 6181 | N45: 0.3428247856
A46: 出水署 | B46: 出水市 | C46: 6421 | D46: 5908 | E46: 12329 | F46: =保有者数!E46 -> 36354 | G46: =E46/F46 -> 0.3391373714 | H46: 徳之島署 | I46: 大島郡徳之島町 | J46: 1255 | K46: 988 | L46: 2243 | M46: =保有者数!K46 -> 6828 | N46: 0.3285002929
E47: 0 | I47: 大島郡天城町 | J47: 746 | K47: 618 | L47: 1364 | M47: =保有者数!K47 -> 3780 | N47: 0.3608465608
A48: 伊佐湧水署 | B48: 伊佐市 | C48: 3469 | D48: 3233 | E48: 6702 | F48: =保有者数!E48 -> 16567 | G48: =E48/F48 -> 0.4045391441 | I48: 大島郡伊仙町 | J48: 860 | K48: 650 | L48: 1510 | M48: =保有者数!K48 -> 4079 | N48: 0.3701887718
E49: 0 | I49: 【徳之島署合計】 | J49: =SUM(J46:J48) -> 2861 | K49: =SUM(K46:K48) -> 2256 | L49: 5117 | M49: =保有者数!K49 -> 14687 | N49: 0.3484033499
B50: 姶良郡湧水町 | C50: 1423 | D50: 1324 | E50: 2747 | F50: =保有者数!E50 -> 6155 | G50: =E50/F50 -> 0.446303818 | H50: 沖永良部署 | I50: 大島郡和泊町 | J50: 864 | K50: 742 | L50: 1606 | M50: =保有者数!K50 -> 4355 | N50: 0.368771527
B51: 【伊佐湧水署合計】 | C51: =SUM(C48:C50) -> 4892 | D51: =SUM(D48:D50) -> 4557 | E51: 9449 | F51: =保有者数!E51 -> 22722 | G51: =E51/F51 -> 0.4158524778 | I51: 大島郡知名町 | J51: 841 | K51: 619 | L51: 1460 | M51: =保有者数!K51 -> 3834 | N51: 0.3808033385
I52: 〈小計〉 | J52: =SUM(J50:J51) -> 1705 | K52: =SUM(K50:K51) -> 1361 | L52: 3066 | M52: =保有者数!K52 -> 8189 | N52: 0.3744046892
H53: 与論 | I53: 大島郡与論町 | J53: 669 | K53: 609 | L53: 1278 | M53: =保有者数!K53 -> 3556 | N53: 0.3593925759
I54: 【沖永良部署合計】 | J54: =SUM(J52,J53) -> 2374 | K54: =SUM(K52,K53) -> 1970 | L54: 4344 | M54: =保有者数!K54 -> 11745 | N54: 0.3698595147
I55: 合計 | J55: =SUM(C6,C7,C9,C11,C14,C17,C20,C23,C26,C39,C40,C45,C46,C51,J9,J10,J13,J18,J21,J26,J30,J34,J35,J42,J45,J49,J54) -> 185007 | K55: =SUM(D6,D7,D9,D11,D14,D17,D20,D23,D26,D39,D40,D45,D46,D51,K9,K10,K13,K18,K21,K26,K30,K34,K35,K42,K45,K49,K54) -> 151767 | L55: 336774 | M55: =SUM(F6,F7,F9,F11,F14,F17,F20,F23,F26,F39,F40,F45,F46,F51,M9,M10,M13,M18,M21,M26,M30,M34,M35,M42,M45,M49,M54) -> 1081325 | N55: =L55/M55 -> 0.3114456801
A58: ※ 比率は県内全免許保有者に対する各市町村の免許保有者等の割合である。 比率は小数点以下２桁で切り捨てているため，若干の誤差がある。

Sheet menu
A1: 集計手順
A3: 1 | B3: このファイルがあるフォルダに情報管理課から送付された月報用ファイルを保存する
A4: 2 | B4: 保存したファイル名の＿以降の数字（西暦下二桁＋年月）を，下記のＣ８セルに入力
A5: 3 | B5: 「集計開始」ボタンをクリック
B8: ファイル名の年月日 | C8: 231031
A12: ※ マクロが有効になっていないと動作しません
